bitfinex/quotes_ETHUSD_20250505
["timestamp","ask_amount","ask_price","bid_price","bid_amount"]
[1746412230218,3.75446518,1802.7,1802.3,2.065]
[1746412231359,3.75446518,1802.7,1802.2,6.15]
[1746412231659,3.75446518,1802.7,1802.3,14.5]
[1746412233162,3.75446518,1802.7,1802.4,6.15]
[1746412233362,3.75446518,1802.7,1802.5,5.136]
[1746412234665,3.75446518,1802.7,1802.4,11.286]
[1746412234863,3.75446518,1802.7,1802.5,0.05547399]
[1746412237068,3.75446518,1802.7,1802.4,12.4146]
[1746412238170,3.75446518,1802.7,1802.5,0.05547075]
[1746412238534,3.75446518,1802.7,1802.5,14.55547075]
[1746412238765,3.75446518,1802.7,1802.5,14.5]
[1746412238944,3.75446518,1802.7,1802.6,7.65546627]
[1746412239446,3.75446518,1802.7,1802.6,7.6]
[1746412239773,3.75446518,1802.7,1802.6,7.65546629]
[1746412240063,0.29096878,1802.8,1802.6,7.65546629]
[1746412240269,0.29096878,1802.8,1802.6,7.6]
[1746412240475,0.29096878,1802.8,1802.7,0.76]
[1746412240636,0.29096878,1802.8,1802.7,0.81546049]
[1746412240837,0.29096878,1802.8,1802.7,15.31546049]
[1746412241033,0.29096878,1802.8,1802.7,15.26]
[1746412241239,1.66444652,1802.8,1802.6,6.15]
[1746412242534,0.05543157,1802.7,1802.6,6.15]
[1746412243142,3.87103157,1802.7,1802.6,6.15]
[1746412243763,0.8156,1802.7,1802.6,6.15]
[1746412243973,0.8156,1802.5,1802.3,5.135]
[1746412244138,3.05543157,1802.4,1801.4,18.37]
[1746412244343,0.8156,1802.3,1801.5,11.285]
[1746412244575,1.2397525,1802.3,1801.6,14.5]
[1746412244969,0.05543157,1802.2,1801.6,14.5]
[1746412245170,0.05543157,1802.2,1801.5,11.285]
[1746412245409,3.05543157,1802.2,1801.6,1.1285]
[1746412245886,0.8156,1802.3,1801.7,0.05549234]
[1746412246390,3.7587,1802.6,1801.7,0.05549234]
[1746412246543,4.17995209,1802.6,1801.7,0.05549234]
[1746412246748,4.17995209,1802.6,1801.8,14.5]
[1746412247001,1.23538366,1802.6,1801.9,12.79048064]
[1746412247201,1.23538366,1802.6,1801.9,12.735]
[1746412248254,1.23538366,1802.6,1802.0,0.05548067]
[1746412248964,1.23538366,1802.6,1801.9,12.735]
[1746412249790,1.23538366,1802.6,1802.0,0.05548068]
[1746412249986,1.23538366,1802.6,1802.0,1.27904807]
[1746412250793,1.23538366,1802.6,1802.0,7.42904807]
[1746412252490,3.08317381,1802.5,1802.0,6.15]
[1746412252691,3.84643157,1802.4,1802.0,6.15]
[1746412253576,0.791,1802.1,1802.0,6.15]
[1746412253782,0.84643157,1802.1,1801.9,5.135]
[1746412254105,0.791,1802.1,1801.9,5.135]
[1746412256583,0.791,1802.1,1801.6,5.048]
[1746412256795,1.08201697,1802.1,1801.7,6.15]
[1746412258006,0.05543157,1802.0,1801.7,6.15]
[1746412258207,0.84643157,1802.1,1801.7,6.15]
[1746412258708,1.25718732,1802.1,1801.7,6.15]
[1746412258885,1.20175575,1802.1,1801.7,6.20549547]
[1746412259203,1.20175575,1802.1,1801.7,7.44282502]
[1746412259406,1.20175575,1802.1,1801.7,7.38732955]
[1746412259610,1.20175575,1802.1,1801.7,7.4428213]
[1746412260281,1.20175575,1802.1,1801.7,7.38732955]
[1746412261108,0.8045,1802.3,1801.8,0.05549033]
[1746412261311,0.8045,1802.3,1801.8,0.74428199]
[1746412266721,0.8045,1802.3,1801.8,5.79328199]
[1746412266900,2.47025628,1802.3,1801.8,5.79328199]
[1746412267285,3.05543157,1802.2,1801.8,5.049]
[1746412267486,3.0,1802.2,1801.8,5.049]
[1746412268634,3.05543157,1802.2,1801.8,5.049]
[1746412268916,3.0,1802.2,1801.8,5.049]
[1746412269324,4.66621507,1802.2,1801.8,5.049]
[1746412270126,1.66621507,1802.2,1801.8,5.049]
[1746412272541,1.66621507,1802.2,1801.9,0.05549091]
[1746412272952,0.8045,1802.3,1801.8,5.049]
[1746412273245,0.8045,1802.3,1801.8,6.1689]
[1746412273645,0.8045,1802.3,1801.9,0.05548471]
[1746412276334,0.8045,1802.3,1801.8,1.1199]
[1746412278225,1.66621507,1802.4,1801.8,1.1199]
[1746412278431,0.7894,1802.5,1801.8,1.1199]
[1746412278633,0.7894,1802.5,1801.9,6.15]
[1746412278849,0.7894,1802.5,1802.0,0.615]
[1746412279926,1.66621507,1802.4,1802.0,0.615]
[1746412283536,0.7894,1802.5,1802.0,6.765]
[1746412283744,1.66621507,1802.6,1802.1,5.10448126]
[1746412283955,0.8132,1802.7,1802.1,5.049]
[1746412284251,1.22978081,1802.7,1802.2,0.5049]
[1746412286663,0.8132,1802.7,1802.3,0.0554742]
[1746412286864,5.42451507,1802.9,1802.3,0.0554742]
[1746412287165,5.42451507,1802.9,1802.3,6.15]
[1746412287370,3.75446518,1803.0,1802.4,0.615]
[1746412288077,3.75446518,1803.0,1802.5,6.7]
[1746412288235,3.75446518,1803.0,1802.6,5.10145921]
[1746412288435,3.75446518,1803.0,1802.7,6.15]
[1746412288732,3.75446518,1803.0,1802.8,0.615]
[1746412289134,0.29086653,1803.2,1802.8,0.615]
[1746412289135,4.04533171,1803.2,1802.8,0.615]
[1746412291767,4.04533171,1803.2,1802.8,6.765]
[1746412293050,0.29086653,1803.2,1802.8,6.765]
[1746412305675,0.29086653,1803.2,1802.8,6.15]
[1746412307588,0.29086653,1803.2,1802.9,0.05545443]
[1746412307789,0.29086653,1803.2,1802.8,6.15]
[1746412309095,3.08119422,1802.9,1802.8,6.15]
[1746412309265,3.37203612,1803.1,1802.8,6.15]
[1746412309464,3.05543157,1803.0,1802.8,6.15]
[1746412309691,3.8113,1802.8,1802.4,11.193]
[1746412309895,1.6653654,1802.7,1802.4,11.193]
[1746412311994,1.6653654,1802.5,1802.4,11.193]
[1746412312168,1.6653654,1802.5,1802.4,6.15]
[1746412312898,1.6653654,1802.7,1802.4,6.765]
[1746412313397,1.6653654,1802.7,1802.4,6.15]
[1746412315295,1.6653654,1802.5,1802.4,6.15]
[1746412315601,1.6653654,1802.7,1802.4,6.15]
[1746412319201,1.6653654,1802.7,1802.5,0.05547243]
[1746412319992,4.6653654,1802.7,1802.4,6.15]
[1746412321571,4.6653654,1802.7,1802.4,4.86892642]
[1746412322001,4.6653654,1802.7,1802.4,4.24973554]
[1746412322382,3.0,1802.7,1802.4,4.24973554]
[1746412322580,3.0,1802.7,1802.4,4.67470909]
[1746412322778,3.0,1802.7,1802.5,0.05547251]
[1746412323195,3.0,1802.7,1802.4,4.67470909]
[1746412324978,1.6653654,1802.6,1802.4,4.24973554]
[1746412326113,1.95627463,1802.6,1802.4,4.24973554]
[1746412327375,0.29090923,1802.6,1802.4,4.24973554]
[1746412329104,0.29090923,1802.6,1802.5,0.05547255]
[1746412329415,0.29090923,1802.6,1802.4,4.24973554]
[1746412329584,0.29090923,1802.6,1802.5,0.42497355]
[1746412332204,1.6653654,1803.0,1802.5,0.42497355]
[1746412332531,1.6653654,1803.0,1802.6,4.24973554]
[1746412332532,0.29087655,1802.8,1802.6,4.24973554]
[1746412339425,0.42185725,1803.1,1802.6,4.24973554]
[1746412339620,0.29083571,1803.0,1802.7,5.037]
[1746412339826,0.29083571,1803.0,1802.8,0.5037]
[1746412341652,0.29083571,1803.0,1802.9,4.24973554]
[1746412342963,0.29083571,1803.0,1802.9,4.30519112]
[1746412343158,4.6653654,1803.5,1802.9,4.24973554]
[1746412343344,0.29080121,1803.2,1803.0,4.24973554]
[1746412343655,4.6653654,1803.5,1803.0,4.24973554]
[1746412343954,0.2907972,1803.2,1803.0,4.24973554]
[1746412344154,1.6653654,1803.5,1803.0,4.24973554]
[1746412344454,0.29079592,1803.3,1803.1,5.037]
[1746412344750,0.29079592,1803.3,1803.1,5.96567355]
[1746412347555,0.29079592,1803.3,1803.2,4.24973554]
[1746412350228,1.95616132,1803.3,1803.2,4.24973554]
[1746412350927,0.29079592,1803.3,1803.2,4.24973554]
[1746412352563,0.29079592,1803.3,1803.2,4.3051868]
[1746412352730,0.777,1803.8,1803.2,5.23940548]
[1746412352932,1.6653654,1803.7,1803.2,5.18395422]
[1746412353229,2.07546718,1803.7,1803.2,5.18395422]
[1746412354264,2.07546718,1803.7,1803.3,0.0554423]
[1746412354468,2.07546718,1803.7,1803.4,4.24973554]
[1746412354762,2.07546718,1803.7,1803.5,0.05544215]
[1746412355151,2.07546718,1803.7,1803.5,4.30517769]
[1746412355465,0.777,1803.8,1803.5,4.24973554]
[1746412356258,1.6653654,1803.7,1803.5,4.24973554]
[1746412356566,1.6653654,1803.7,1803.5,4.67470909]
[1746412357467,1.6653654,1803.7,1803.5,4.24973554]
[1746412357972,2.08435794,1803.7,1803.5,4.24973554]
[1746412358767,1.6653654,1803.7,1803.5,4.24973554]
[1746412360460,0.777,1803.8,1803.5,4.24973554]
[1746412361841,1.19011932,1803.8,1803.5,4.24973554]
[1746412362471,1.19011932,1803.8,1803.5,4.67470909]
[1746412363166,0.41311932,1803.8,1803.5,4.67470909]
[1746412363465,1.6653654,1803.9,1803.6,0.05543669]
[1746412363672,2.4789654,1804.1,1803.6,0.05543439]
[1746412363873,2.4789654,1804.1,1803.7,4.24973554]
[1746412364036,2.4789654,1804.1,1803.8,0.055432]
[1746412364470,2.4789654,1804.1,1803.8,0.05543014]
[1746412364776,2.4789654,1804.1,1803.7,4.68025253]
[1746412365973,1.6653654,1804.1,1803.7,4.68025253]
[1746412366166,2.07823432,1804.1,1803.8,4.24973554]
[1746412366352,2.07823432,1804.1,1803.8,4.71776079]
[1746412367070,1.6653654,1804.1,1803.8,4.71776079]
[1746412367454,0.7652,1804.3,1803.9,4.30516251]
[1746412367779,1.6653654,1804.2,1803.9,9.33116251]
[1746412367979,1.6653654,1804.2,1804.0,0.93311625]
[1746412368279,1.6653654,1804.2,1804.0,5.18285179]
[1746412368853,3.88753157,1804.1,1804.0,4.24973554]
[1746412369566,3.8321,1804.1,1804.0,4.24973554]
[1746412369867,0.8321,1804.1,1804.0,4.24973554]
[1746412370268,1.6653654,1804.2,1804.0,4.24973554]
[1746412370671,0.8321,1804.3,1804.0,4.24973554]
[1746412370866,0.8321,1804.3,1804.0,4.67470909]
[1746412372155,1.6653654,1804.2,1804.0,4.67470909]
[1746412373168,1.6653654,1804.2,1804.0,4.24973554]
[1746412376162,0.82143157,1804.1,1804.0,4.24973554]
[1746412376577,0.766,1804.1,1804.0,4.24973554]
[1746412376784,2.4313654,1804.1,1804.0,4.24973554]
[1746412378028,1.6653654,1804.1,1804.0,4.24973554]
[1746412378180,2.4869654,1804.3,1804.0,4.24973554]
[1746412379002,1.6653654,1804.3,1804.0,4.24973554]
[1746412379810,1.6653654,1804.1,1804.0,4.24973554]
[1746412381223,1.6653654,1804.3,1804.0,4.24973554]
[1746412382727,1.6653654,1804.1,1804.0,4.24973554]
[1746412383827,1.6653654,1804.3,1804.0,4.24973554]
[1746412384323,5.4492654,1804.1,1804.0,4.24973554]
[1746412384534,2.4492654,1804.1,1804.0,4.24973554]
[1746412387029,2.76128695,1804.1,1804.0,4.24973554]
[1746412387238,2.76128695,1804.1,1803.7,4.24973554]
[1746412387443,1.6653654,1803.8,1803.7,4.24973554]
[1746412389612,5.4753654,1803.8,1803.7,4.24973554]
[1746412391131,3.0,1803.8,1803.7,4.67470909]
[1746412392246,4.6653654,1804.0,1803.7,4.67470909]
[1746412394343,2.4361654,1804.3,1803.8,4.30516928]
[1746412394520,2.4361654,1804.3,1803.9,4.24973554]
[1746412394740,2.84439594,1804.3,1803.9,4.67470909]
[1746412394922,1.6653654,1804.1,1803.9,4.67470909]
[1746412395608,0.05543157,1804.0,1803.9,4.24973554]
[1746412395847,1.6653654,1804.1,1803.9,4.24973554]
[1746412396541,1.72079697,1804.1,1803.9,4.24973554]
[1746412397208,0.8079,1804.0,1803.9,4.24973554]
[1746412397405,3.8079,1804.0,1803.9,4.24973554]
[1746412397612,4.3607697,1804.0,1803.9,4.24973554]
[1746412398311,4.12003746,1804.0,1803.9,4.24973554]
[1746412398511,4.17546903,1804.0,1803.9,4.24973554]
[1746412398751,4.17546903,1804.0,1803.7,5.014]
[1746412398937,1.6653654,1803.8,1803.7,5.014]
[1746412399143,1.6653654,1803.8,1803.4,5.014]
[1746412399445,1.6653654,1803.8,1803.4,5.17610909]
[1746412399446,1.6653654,1803.6,1803.4,5.17610909]
[1746412399648,1.6653654,1803.6,1803.4,4.24973554]
[1746412400159,1.72079697,1803.6,1803.4,4.24973554]
[1746412400852,1.6653654,1803.6,1803.4,4.24973554]
[1746412401213,2.08698562,1803.6,1803.4,4.24973554]
[1746412402775,0.05543157,1803.5,1803.4,4.24973554]
[1746412403056,0.05543157,1803.5,1803.2,4.24973554]
[1746412403217,1.6653654,1803.3,1803.2,4.24973554]
[1746412403413,1.72079697,1803.3,1803.2,4.24973554]
[1746412404550,1.6653654,1803.3,1803.2,4.24973554]
[1746412405054,1.6653654,1803.3,1802.9,4.24973554]
[1746412405257,1.6653654,1803.0,1802.9,4.24973554]
[1746412406143,0.05543157,1803.1,1802.9,4.24973554]
[1746412406344,1.6653654,1803.0,1802.9,4.24973554]
[1746412407751,2.07855529,1803.0,1802.9,4.24973554]
[1746412409062,2.07855529,1803.0,1802.7,9.26473554]
[1746412409257,2.07855529,1803.0,1802.7,10.19120909]
[1746412412333,0.41318989,1803.0,1802.7,10.19120909]
[1746412412518,4.6653654,1803.1,1802.7,10.19120909]
[1746412415071,4.6653654,1803.1,1802.8,4.24973554]
[1746412416469,1.6653654,1803.1,1802.8,4.30519758]
[1746412416654,1.6653654,1803.1,1802.9,0.43051976]
[1746412418064,0.29084704,1803.2,1802.9,0.43051976]
[1746412418231,2.4942654,1803.6,1803.0,4.30519763]
[1746412418432,1.6653654,1803.4,1803.1,4.24973554]
[1746412418865,0.05543157,1803.5,1803.1,4.24973554]
[1746412419162,1.6653654,1803.5,1803.1,4.24973554]
[1746412419326,1.6653654,1803.5,1803.1,9.25373554]
[1746412423639,1.6653654,1803.3,1803.1,9.25373554]
[1746412423987,1.6653654,1803.3,1803.2,3.48592698]
[1746412424269,1.6653654,1803.3,1803.2,2.88324586]
[1746412424439,1.6653654,1803.3,1803.2,2.73257558]
[1746412425535,1.72079697,1803.3,1803.2,2.73257558]
[1746412425748,2.19287667,1803.3,1803.2,2.73257558]
[1746412426874,3.02177667,1803.3,1803.2,2.73257558]
[1746412428445,6.02177667,1803.3,1803.2,2.73257558]
[1746412429058,6.3336728,1803.3,1803.2,2.73257558]
[1746412432575,3.0,1803.2,1802.9,2.73257558]
[1746412432781,1.6653654,1803.0,1802.9,2.73257558]
[1746412435278,2.01162496,1803.2,1802.9,2.73257558]
[1746412435477,5.01162496,1803.2,1802.9,2.73257558]
[1746412435776,0.29082799,1803.2,1803.0,0.05545895]
[1746412435953,0.29082799,1803.2,1803.0,0.05545404]
[1746412436354,0.29082799,1803.2,1802.9,3.50623314]
[1746412437481,0.29082799,1803.2,1803.0,0.05545419]
[1746412437776,0.42645086,1803.6,1803.0,2.78802977]
[1746412437947,3.29078391,1803.6,1803.1,3.01137856]
[1746412438149,3.29078391,1803.6,1803.2,0.05544878]
[1746412438349,3.29078391,1803.6,1803.1,3.01137856]
[1746412439885,0.29078391,1803.6,1803.1,3.01137856]
[1746412440289,0.29078391,1803.6,1803.2,4.992]
[1746412440475,1.6653654,1803.5,1803.2,5.79233786]
[1746412441344,1.6653654,1803.5,1803.3,2.78802388]
[1746412441546,1.6653654,1803.5,1803.3,2.73257558]
[1746412443593,4.6653654,1803.5,1803.3,2.73257558]
[1746412443806,0.7845,1803.4,1803.3,2.73257558]
[1746412444151,1.09648997,1803.4,1803.3,2.73257558]
[1746412444353,1.37821866,1803.4,1803.3,2.73257558]
[1746412445372,4.37821866,1803.4,1803.3,2.73257558]
[1746412445898,0.31198997,1803.4,1803.3,2.73257558]
[1746412446458,0.41701687,1803.6,1803.3,2.73257558]
[1746412446663,0.29080969,1803.7,1803.3,2.73257558]
[1746412447010,0.29080969,1803.7,1803.3,7.72357558]
[1746412447292,1.6653654,1803.6,1803.3,7.72357558]
[1746412450172,2.16098291,1803.6,1803.4,2.73257558]
[1746412450518,0.7569,1803.4,1802.9,2.73257558]
[1746412450715,1.6653654,1803.0,1802.9,2.73257558]
[1746412450868,1.72079697,1803.0,1802.9,2.73257558]
[1746412451069,5.26856667,1803.0,1802.5,2.73257558]
[1746412451270,1.6653654,1802.7,1802.5,2.73257558]
[1746412451681,6.97667587,1803.0,1802.5,2.73257558]
[1746412452013,3.97667587,1803.0,1802.5,2.73257558]
[1746412454514,4.63795814,1803.0,1802.5,2.73257558]
[1746412455387,3.68581865,1803.0,1802.5,2.73257558]
[1746412456113,3.68581865,1803.0,1802.6,2.73257558]
[1746412456823,4.36936631,1803.0,1802.6,2.73257558]
[1746412457697,4.79130993,1803.0,1802.6,2.73257558]
[1746412459222,4.10776227,1803.0,1802.6,2.73257558]
[1746412460198,1.18987623,1802.9,1802.6,2.73257558]
[1746412460534,0.05543157,1802.8,1802.6,2.73257558]
[1746412462040,3.0,1802.7,1802.6,2.73257558]
[1746412466422,3.8255,1802.7,1802.6,2.73257558]
[1746412467715,3.8255,1802.7,1802.2,2.73257558]
[1746412467933,0.05543157,1802.6,1802.2,2.73257558]
[1746412468140,3.0,1802.5,1802.2,2.73257558]
[1746412468450,3.75446518,1803.2,1802.6,2.67714401]
[1746412468648,3.75446518,1803.2,1802.7,2.67714401]
[1746412469205,3.0,1803.1,1802.7,2.67714401]
[1746412469419,6.08261738,1803.1,1802.7,2.67714401]
[1746412470645,7.21347514,1803.1,1802.7,2.67714401]
[1746412471013,0.29085953,1803.0,1802.7,2.67714401]
[1746412471757,1.66485691,1802.9,1802.7,2.67714401]
[1746412473154,1.95573464,1802.9,1802.7,2.67714401]
[1746412476927,1.66485691,1802.9,1802.7,2.67714401]
[1746412477130,3.75446518,1803.6,1802.9,0.55]
[1746412477329,3.75446518,1803.6,1803.0,2.67714401]
[1746412477731,4.66485691,1803.5,1803.0,2.67714401]
[1746412477943,1.66485691,1803.3,1803.0,2.67714401]
[1746412478341,1.66485691,1803.3,1803.0,3.44305841]
[1746412479560,1.66485691,1803.3,1803.0,2.67714401]
[1746412479762,3.08127061,1803.4,1803.0,2.67714401]
[1746412480674,0.29081106,1803.4,1803.0,2.73260383]
[1746412484580,0.29081106,1803.4,1803.0,2.67714401]
[1746412485371,0.29081106,1803.4,1802.9,4.982]
[1746412485372,0.29081106,1803.4,1803.1,2.67714401]
[1746412485875,0.29081106,1803.4,1803.2,0.0554512]
[1746412486886,0.42403903,1803.8,1803.2,0.0554512]
[1746412486887,0.7634,1804.5,1803.4,2.38633295]
[1746412487039,3.0,1804.3,1803.5,2.4417595]
[1746412487237,6.83573579,1804.2,1803.5,2.38633295]
[1746412490092,6.83573579,1804.2,1803.3,4.981]
[1746412490093,3.75446518,1804.2,1803.7,0.55]
[1746412490255,3.75446518,1804.2,1803.7,5.28017636]
[1746412490454,3.75446518,1804.2,1803.8,0.05542117]
[1746412490762,3.75446518,1804.2,1803.9,2.38633295]
[1746412490979,3.75446518,1804.2,1804.0,0.05542068]
[1746412491691,4.10926298,1804.6,1804.0,0.05542068]
[1746412491993,4.10926298,1804.6,1804.1,2.38633295]
[1746412492351,4.10926298,1804.6,1804.1,3.12850831]
[1746412493719,4.10926298,1804.6,1804.2,0.05542085]
[1746412494588,1.10926298,1804.6,1804.3,2.38633295]
[1746412496467,1.10926298,1804.6,1804.4,0.0554135]
[1746412496687,1.10926298,1804.6,1804.5,2.38633295]
[1746412498822,1.10926298,1804.6,1804.5,3.12286625]
[1746412499391,1.10926298,1804.6,1804.5,3.17826699]
[1746412500715,1.10926298,1804.6,1804.5,3.12286625]
[1746412501228,3.08127061,1805.2,1804.5,2.13584807]
[1746412501379,3.826,1805.1,1804.5,1.39931477]
[1746412502098,3.08127061,1805.0,1804.5,1.39931477]
[1746412502298,3.08127061,1804.8,1804.5,1.39931477]
[1746412502512,3.0,1804.9,1804.5,1.39931477]
[1746412504841,3.0,1804.9,1804.3,5.002]
[1746412504842,0.7699,1805.6,1804.6,1.39931477]
[1746412505037,3.0,1805.5,1804.7,5.002]
[1746412505243,3.0,1805.5,1804.8,1.89951477]
[1746412506543,3.0,1805.3,1804.9,1.39931477]
[1746412506843,0.7831,1805.2,1804.9,1.39931477]
[1746412507434,0.7831,1805.7,1805.0,1.39931477]
[1746412507633,3.0,1805.6,1805.1,6.40131477]
[1746412507798,3.0,1805.6,1805.1,1.39931477]
[1746412507999,0.3,1805.5,1805.1,1.39931477]
[1746412509536,6.08127061,1805.3,1805.2,1.39931477]
[1746412510443,3.40855024,1805.3,1805.2,1.39931477]
[1746412511799,7.82432085,1805.3,1805.2,1.39931477]
[1746412512538,0.7845,1805.1,1804.6,1.39931477]
[1746412512720,3.0,1804.8,1804.6,1.39931477]
[1746412513238,3.0,1804.8,1804.2,5.001]
[1746412513239,3.0,1804.6,1804.2,5.001]
[1746412513412,3.0,1804.4,1804.1,5.74317536]
[1746412513612,3.0,1804.4,1803.7,18.64717636]
[1746412513613,3.0,1804.4,1803.7,23.64817636]
[1746412513926,3.0,1804.4,1803.8,0.05542782]
[1746412514828,3.0,1804.4,1803.8,0.05542765]
[1746412515005,3.0,1804.4,1803.8,0.5355604]
[1746412515205,3.0,1804.4,1803.8,0.59098529]
[1746412515852,3.0,1804.4,1803.8,0.5355604]
[1746412516742,3.0,1804.6,1803.8,0.5355604]
[1746412516947,1.21775024,1805.3,1803.9,0.55]
[1746412517112,6.21875024,1805.3,1804.0,3.0]
[1746412517439,3.0,1805.2,1804.1,5.35640582]
[1746412517741,6.21875024,1805.3,1804.2,6.7]
[1746412517903,6.21875024,1805.3,1804.3,0.05540027]
[1746412518111,6.21875024,1805.3,1804.4,6.15]
[1746412518333,6.21875024,1805.3,1804.5,5.05740028]
[1746412518732,3.0,1805.2,1804.5,5.002]
[1746412518921,6.21875024,1805.3,1804.5,5.002]
[1746412519966,3.0,1805.2,1804.5,5.002]
[1746412520127,3.0,1805.2,1804.6,0.5002]
[1746412520825,3.0,1805.2,1804.7,0.05540401]
[1746412521019,3.0,1805.2,1804.8,6.15]
[1746412521226,4.21775024,1805.3,1804.8,6.15]
[1746412522415,3.0,1804.9,1804.8,6.15]
[1746412523216,3.87307061,1805.0,1804.8,6.15]
[1746412523217,0.7918,1805.0,1804.8,6.15]
[1746412523412,1.17098,1805.0,1804.8,6.15]
[1746412524350,1.37410952,1805.7,1804.9,0.05541037]
[1746412524660,3.7894,1805.7,1805.0,6.15]
[1746412524820,3.7894,1805.7,1805.0,11.151]
[1746412525015,4.21345847,1805.7,1805.0,11.151]
[1746412526119,3.08127061,1805.6,1805.0,11.151]
[1746412526320,3.81074352,1805.6,1805.0,12.2661]
[1746412528572,0.4104035,1805.8,1805.1,6.20539659]
[1746412528748,0.4104035,1805.8,1805.1,6.15]
[1746412529372,3.4104035,1805.8,1805.2,0.05538212]
[1746412531563,3.0,1805.6,1805.1,6.15]
[1746412532060,3.0,1805.6,1805.1,6.20538924]
[1746412532277,0.4104035,1805.8,1805.1,6.20538924]
[1746412532278,0.4104035,1805.8,1805.7,6.15]
[1746412532441,0.4104035,1805.8,1805.4,5.164]
[1746412532644,0.4104035,1805.8,1805.5,0.05537814]
[1746412532879,0.4104035,1805.8,1805.6,6.15]
[1746412535975,3.0,1805.7,1805.6,6.15]
[1746412536573,0.4104035,1805.8,1805.6,6.15]
[1746412536757,0.4104035,1805.8,1805.7,0.615]
[1746412538449,0.4104035,1805.8,1805.7,6.765]
[1746412539857,0.4104035,1805.8,1805.7,6.15]
[1746412540867,3.4104035,1805.8,1805.7,6.15]
[1746412542990,4.7134035,1805.8,1805.7,6.15]
[1746412543305,3.82961983,1805.8,1805.1,5.162]
[1746412543459,3.82961983,1805.8,1805.2,6.20540038]
[1746412543660,3.82961983,1805.8,1805.3,0.62054004]
[1746412544360,4.58261983,1805.8,1805.3,0.62054004]
[1746412544760,4.58261983,1805.8,1805.2,6.15]
[1746412545692,3.82961983,1805.8,1805.2,6.15]
[1746412545916,0.4104035,1805.8,1805.3,0.05538783]
[1746412546083,0.4104035,1805.8,1805.3,5.162]
[1746412547166,0.4104035,1805.8,1805.4,0.05536866]
[1746412547365,0.4104035,1805.8,1805.4,0.57710553]
[1746412548907,3.08627061,1806.5,1806.0,6.15]
[1746412548908,0.005,1806.5,1806.0,6.15]
[1746412549084,0.005,1806.5,1806.1,6.15]
[1746412549289,0.005,1806.5,1806.1,6.20535793]
[1746412549786,0.7679,1806.5,1806.1,6.20535793]
[1746412549993,3.84917061,1806.5,1806.2,6.15]
[1746412550175,0.38491706,1806.4,1806.2,6.15]
[1746412551372,3.84917061,1806.5,1806.2,6.15]
[1746412551689,0.005,1806.5,1806.3,6.15]
[1746412551874,0.005,1806.5,1806.4,6.15]
[1746412552078,0.005,1806.5,1806.1,6.20535207]
[1746412554403,0.005,1806.5,1806.2,6.15]
[1746412555597,3.827,1806.5,1806.2,6.15]
[1746412557003,0.005,1806.5,1806.2,6.15]
[1746412557412,0.8353,1806.5,1806.2,6.15]
[1746412558380,3.91657061,1806.5,1806.2,6.15]
[1746412558583,3.91657061,1806.5,1806.3,6.15]
[1746412559279,0.005,1806.5,1806.3,6.765]
[1746412560315,0.005,1806.5,1806.3,6.15]
[1746412563532,3.0,1806.4,1806.3,6.15]
[1746412564018,4.3319,1806.4,1806.3,6.15]
[1746412564218,3.7819,1806.4,1806.3,6.15]
[1746412564419,3.0,1806.4,1806.3,6.15]
[1746412564827,0.005,1806.5,1806.3,6.765]
[1746412565324,0.005,1806.6,1806.5,6.145]
[1746412566703,0.005,1806.6,1806.5,6.20034198]
[1746412566893,0.005,1806.6,1806.5,6.145]
[1746412567121,0.005,1806.6,1806.5,7.281]
[1746412567323,0.005,1806.6,1806.5,7.33633761]
[1746412567799,0.005,1806.6,1806.5,7.281]
[1746412569332,0.005,1806.6,1806.5,7.33633298]
[1746412569742,0.005,1806.6,1806.5,7.281]
[1746412569926,0.005,1806.6,1806.5,7.336333]
[1746412570540,6.91077061,1807.4,1807.3,2.7958262]
[1746412571034,3.0,1807.4,1807.3,2.7958262]
[1746412571327,6.08127061,1807.4,1807.3,2.7958262]
[1746412571534,7.06484419,1807.4,1807.3,2.7958262]
[1746412572520,8.43444419,1807.4,1807.3,2.7958262]
[1746412573196,8.84373806,1807.4,1807.3,2.7958262]
[1746412576440,8.84373806,1807.4,1807.3,8.9458262]
[1746412577335,8.84373806,1807.4,1807.3,8.69586591]
[1746412577542,8.84373806,1807.4,1807.3,5.92436801]
[1746412578118,1.3817,1807.0,1806.9,3.14742332]
[1746412578314,7.46297061,1807.0,1806.9,3.14742332]
[1746412579018,6.91297061,1807.0,1806.9,3.14742332]
[1746412579223,3.8317,1807.0,1806.9,3.14742332]
[1746412581839,4.3817,1807.0,1806.9,3.14742332]
[1746412582164,5.12799706,1807.0,1806.9,3.14742332]
[1746412582445,3.0,1806.5,1806.4,5.214]
[1746412582644,3.0,1806.5,1806.4,6.15]
[1746412583324,3.0,1806.7,1806.4,6.15]
[1746412583642,3.0,1806.7,1806.5,6.15]
[1746412585025,4.2031102,1806.9,1806.5,6.765]
[1746412585450,4.2031102,1806.9,1806.5,6.15]
[1746412585757,3.0,1806.7,1806.5,6.15]
[1746412586158,0.752,1806.6,1806.5,6.15]
[1746412586816,6.83327061,1806.6,1806.5,6.15]
[1746412587011,3.752,1806.6,1806.5,6.15]
[1746412587969,3.0,1806.5,1806.2,6.15]
[1746412588169,3.752,1806.6,1806.2,6.77053573]
[1746412588170,0.752,1806.6,1806.2,6.77053573]
[1746412588869,0.752,1806.6,1806.2,0.62053573]
[1746412589074,0.752,1806.6,1806.1,0.05535725]
[1746412591875,3.83327061,1806.6,1806.0,5.214]
[1746412593075,3.0,1806.7,1806.0,5.214]
[1746412593076,3.0,1806.3,1806.0,5.214]
[1746412593281,0.7593,1806.2,1806.0,5.214]
[1746412593642,0.7593,1806.2,1805.6,5.122]
[1746412593842,3.0,1806.1,1805.7,0.5122]
[1746412595167,4.25081896,1806.2,1805.8,0.05537522]
[1746412595168,1.16954835,1806.2,1805.8,0.05537522]
[1746412595745,0.41024835,1806.2,1805.8,0.05537522]
[1746412595974,3.7593,1806.3,1805.8,0.05537522]
[1746412596363,5.123,1806.6,1805.8,0.05537522]
[1746412596564,0.7593,1806.5,1805.8,0.05537522]
[1746412596743,4.17118318,1806.5,1805.8,0.05537522]
[1746412596943,1.17118318,1806.5,1805.8,0.05537522]
[1746412597171,4.17118318,1806.5,1805.8,0.05537522]
[1746412598171,0.55,1806.4,1805.8,0.0553655]